Cogmind - Beta 15 @@@ ROGUE MODE // 2025.07.27 @ 01:28:58 Player: ranter Result: Destroyed by S-27 Virus with Autogun Performance ------------- Evolutions (6) 3000 Regions Visited (7) 1400 Robots Destroyed (21) 105 Value Destroyed (692) 692 Prototype IDs (18) 360 Alien Tech Used (0) 0 Bonus (500) 500 TOTAL SCORE: 6057 Bonus ------- Entered DSFs 500 Cogmind --------- Core Integrity 0/1150 Matter 89/300 Energy 100/100 System Corruption 0% Temperature Cool (9) Movement Core (50) Location -4/Factory Parts ------- > --- POWER (2) -------- (None) > --- PROPULSION (7) --- (None) > --- UTILITY (6) ------ Advanced Signal Interpreter Component Analysis Suite > --- WEAPON (4) ------- (None) > --- INVENTORY (5) ---- (None) Peak State ------------ > --- POWER ------------ Meta Core > --- PROPULSION ------- Xenon Bombardment Thruster Nuclear Pulse Thruster Field Propulsion Drive Field Propulsion Drive > --- UTILITY ---------- Advanced Signal Interpreter Advanced Terrain Scan Processor Reaction Control System Advanced EM Disruption Field Advanced Hacking Suite Component Analysis Suite > --- WEAPON ----------- Plasma Rifle Variable Charge Gun Slug Cannon > --- INVENTORY -------- Micro Fission Core Advanced ECM Suite Hacking Suite Long-range Proton Cannon Subdweller Shrapnel Launcher [Rating: 80] Favorites ----------- Power Meta Core Engine Light Ion Engine Power Core Meta Core Propulsion Aluminum Leg Leg Aluminum Leg Hover Unit Combat Airjet Flight Unit VTOL Module Utility Sensor Array Device Sensor Array Processor Signal Interpreter Hackware Advanced Hacking Suite Protection Makeshift Light Armor Plating Weapon Advanced Beam Cannon Energy Gun Plasma Rifle Energy Cannon Advanced Beam Cannon Ballistic Gun Subdweller Machine Gun Ballistic Cannon Slug Cannon Launcher Grenade Launcher Special Weapon Improved Remote Datajack Special Melee Weapon Datajack Build | -11 -10 -10 -9 -6 -6 -5 -4 ------- Run | Yrd Mat Sub Scr Fac DSF Fac Fac Slots Evolved 12 | . . . . 8 . 2 2 Power 1 | . . . . . . . 1 Propulsion 5 | . . . . 4 . 1 . Utility 4 | . . . . 3 . 1 . Weapon 2 | . . . . 1 . . 1 Parts Attached 59 | 5 13 8 4 12 4 10 3 Power 6 | 1 2 2 . . . . 1 Engine 3 | 1 1 1 . . . . . Core 3 | . 1 1 . . . . 1 Reactor . | . . . . . . . . Propulsion 20 | 2 1 1 2 8 3 2 1 Treads . | . . . . . . . . Leg 4 | 2 1 1 . . . . . Wheel . | . . . . . . . . Hover 8 | . . . . 8 . . . Flight 8 | . . . 2 . 3 2 1 Utility 15 | . 3 1 1 4 . 6 . Device 9 | . 2 . 1 2 . 4 . Storage . | . . . . . . . . Processor 3 | . 1 . . 2 . . . Hackware 2 | . . . . . . 2 . Protection 1 | . . 1 . . . . . Artifact . | . . . . . . . . Weapon 18 | 2 7 4 1 . 1 2 1 Energy Gun 5 | 2 . . . . 1 2 . Energy Cannon 4 | . 3 1 . . . . . Ballistic Gun 2 | . . 2 . . . . . Ballistic Cannon 1 | . . 1 . . . . . Launcher 3 | . 2 . 1 . . . . Special Weapon 2 | . 1 . . . . . 1 Impact Weapon . | . . . . . . . . Slashing Weapon . | . . . . . . . . Piercing Weapon . | . . . . . . . . Special Melee Weapon 1 | . 1 . . . . . . Unidentified Prototypes 2 | . 1 . . . . 1 . Parts Lost 19 | . 2 3 . . 3 3 8 Power 4 | . 1 1 . . . . 2 Propulsion 5 | . . 1 . . 1 1 2 Utility 7 | . . . . . 2 2 3 Weapon 3 | . 1 1 . . . . 1 Highest Loss Streak 9 | . 1 2 . . 3 2 9 To Critical Strikes . | . . . . . . . . Average Backups 4 | 2 4 4 4 5 4 4 3 Power 1 | . . 1 1 1 1 1 . Propulsion . | . . . . . . . . Utility 1 | . . . 1 1 1 1 1 Weapon 1 | 1 2 1 1 3 2 1 . Tool/Special . | . . . . . . . . Unused Backups 12 | . 4 2 2 1 . 3 . Power 1 | . . 1 . . . . . Propulsion 2 | . 1 1 . . . . . Utility 3 | . 1 . 1 1 . . . Weapon 4 | . 2 . . . . 2 . Tool/Special 2 | . . . 1 . . 1 . Average Slot Usage (%) 90 | . 94 91 98 72 74 70 24 Core 9 | . 9 9 10 6 6 5 5 Leg 19 | . 27 20 19 . . . . Hover 1 | . . . . 27 19 . . Flight 4 | . . . 8 12 15 22 3 Device 11 | . 14 10 10 16 17 9 4 Processor 9 | . 8 10 9 8 12 9 5 Protection 6 | . . 8 9 . . . . Energy Cannon 16 | . 23 17 19 . . . . Ballistic Gun 4 | . . 9 . . . . . Ballistic Cannon 4 | . . 3 9 . . 4 . Peak Build Rating 80 | 5 13 31 36 65 67 80 52 Average Rating 30 | 3 11 27 32 58 60 68 32 On Entrance 26 | . 5 13 31 26 61 48 30 Naked Turns . | . . . . . . . . Heaviest Build 30 | 7 15 30 30 11 20 25 15 Greatest Support 48 | 20 20 20 20 48 31 26 13 Greatest Overweight (x) 4 | . 1 1 1 1 . . 4 Average Overweight (x) . | . . . . . . . . Largest Inventory Capacity 5 | 5 5 5 5 5 5 5 5 Average Capacity 5 | 5 5 5 5 5 5 5 5 Most Carried 5 | 5 5 5 5 5 5 5 5 Average Carried 4 | 2 4 4 4 4 4 4 2 Final Capacity 5 | 5 5 5 5 5 5 5 5 Final Carried 5 | 3 5 5 5 5 4 5 . Class Distribution -------------------- 67% | Skirmisher 21% | Mutant 4% | Scout 3% | Sprinter Dominant Class ---------------- Mutant | -10/Materials Skirmisher | -10/Subcaves Skirmisher | -9/Scraptown Scout | -6/Factory Scout | -6/DSF Sprinter | -5/Factory Mutant | -4/Factory Resources | -11 -10 -10 -9 -6 -6 -5 -4 ----------- Run | Yrd Mat Sub Scr Fac DSF Fac Fac Matter Collected 728 | 86 265 367 10 . . . . Remotely . | . . . . . . . . Salvage Created 878 | . 278 542 . . 58 . . Parts 54 | . 20 34 . . . . . Haulers Intercepted . | . . . . . . . . Recyclers Shooed . | . . . . . . . . Parts Field Recycled . | . . . . . . . . Retrieved Matter . | . . . . . . . . Parts Self-Destructed 18 | . . 18 . . . . . Prevented . | . . . . . . . . Kills | -11 -10 -10 -9 -6 -6 -5 -4 ------- Run | Yrd Mat Sub Scr Fac DSF Fac Fac Combat Hostiles Destroyed 17 | . 8 9 . . . . . Guns 3 | . . 3 . . . . . Cannons 11 | . 5 6 . . . . . AOE 3 | . 3 . . . . . . Classes Destroyed 6 | . 4 2 . . . . . Operator 2 | . 2 . . . . . . Watcher 2 | . 2 . . . . . . Swarmer 3 | . 3 . . . . . . Grunt 6 | . 5 1 . . . . . Sentry 1 | . . 1 . . . . . Subdweller 7 | . . 7 . . . . . Best Kill Streak 3 | . 3 2 . . . . . Combat Bots Only 3 | . 3 2 . . . . . Max Kills in Single Turn 2 | . 2 1 . . . . . Gunslinging . | . . . . . . . . Exploded 2 | . 2 . . . . . . Melee . | . . . . . . . . Uniques/NPCs Destroyed . | . . . . . . . . Combat | -11 -10 -10 -9 -6 -6 -5 -4 -------- Run | Yrd Mat Sub Scr Fac DSF Fac Fac Hostile Shots Fired 346 | . 47 62 . . 31 61 145 Missed 131 | . 13 18 . . 15 37 48 Hits 215 | . 34 44 . . 16 24 97 Melee 13 | . . . . . 7 6 . Projectile 202 | . 34 44 . . 9 18 97 AOE 3 | . . . . . 3 . . Critical Strikes 11 | . 1 . . . 2 6 2 Damage Taken 3642 | . 400 679 . . 465 459 1639 Core 1731 | . 79 89 . . 166 236 1161 Absorbed by Shields . | . . . . . . . . Regen/Repaired (Parts) 32 | . 32 . . . . . . Core Remaining (%) 72 | 100 . . 32 . 80 76 . Volleys Fired 82 | . 29 45 . . 3 5 . Largest 3 | . 2 3 . . 1 3 . Hottest 190 | . 136 188 . . 75 190 . Shots Fired 150 | . 54 86 . . 3 7 . Gun 46 | . 10 27 . . 3 6 . Cannon 97 | . 37 59 . . . 1 . Launcher 5 | . 5 . . . . . . Special 2 | . 2 . . . . . . Kinetic 32 | . . 31 . . . 1 . Thermal 103 | . 39 55 . . 3 6 . Explosive 5 | . 5 . . . . . . Electromagnetic 10 | . 10 . . . . . . Robot Hit Streak 17 | . 6 17 . . . 2 . Robot Miss Streak 4 | . 3 4 . . 3 2 . Penetration Max . | . . . . . . . . Secondary Targets . | . . . . . . . . Shots Hit Robots 76 | . 32 42 . . . 2 . Core Hits 32 | . 14 17 . . . 1 . Critical Kills . | . . . . . . . . Critical Parts Destroyed . | . . . . . . . . Critical Strikes 1 | . 1 . . . . . . Corrupt 1 | . 1 . . . . . . Melee Attacks 5 | . 5 . . . . . . Impact . | . . . . . . . . Slashing . | . . . . . . . . Piercing . | . . . . . . . . Sneak Attacks 2 | . 2 . . . . . . Combat Hostiles . | . . . . . . . . Follow-up Attacks . | . . . . . . . . Damage Inflicted 1769 | . 797 931 . . . 41 . Guns 476 | . 67 368 . . . 41 . Cannons 1032 | . 469 563 . . . . . Explosions 261 | . 261 . . . . . . Melee . | . . . . . . . . Ramming . | . . . . . . . . Kinetic 439 | . . 439 . . . . . Thermal 1048 | . 515 492 . . . 41 . Explosive 215 | . 215 . . . . . . Electromagnetic 67 | . 67 . . . . . . Impact . | . . . . . . . . Slashing . | . . . . . . . . Piercing . | . . . . . . . . Highest Corruption . | . . . . . . . . Average Corruption . | . . . . . . . . Corruption Purged . | . . . . . . . . Corruption Blocked . | . . . . . . . . Overload Shots . | . . . . . . . . Overflow Damage . | . . . . . . . . Projectiles . | . . . . . . . . Explosions . | . . . . . . . . Melee . | . . . . . . . . Knockbacks 1 | . . 1 . . . . . Impact . | . . . . . . . . Kinetic 1 | . . 1 . . . . . Secondary . | . . . . . . . . Self-Inflicted Damage 40 | . 40 . . . . . . Shots 1 | . 1 . . . . . . Rammed . | . . . . . . . . Targets Rammed . | . . . . . . . . Kicked . | . . . . . . . . Crushed . | . . . . . . . . Highest Temperature 360 | . 360 174 . . . 108 . Average Temperature 72 | . 88 48 . . . 56 . Received Heat Transfer 528 | . 120 126 . . 18 96 168 Effects 1 | . 1 . . . . . . Shutdowns 1 | . 1 . . . . . . Siege Activations . | . . . . . . . . Martial Activations . | . . . . . . . . Shielding Activations . | . . . . . . . . Robots Disrupted . | . . . . . . . . Combat Hostiles . | . . . . . . . . Robots Corrupted . | . . . . . . . . Combat Hostiles . | . . . . . . . . Parts Fried . | . . . . . . . . Impact Corruptions . | . . . . . . . . Robots Melted . | . . . . . . . . Combat Hostiles . | . . . . . . . . Parts Melted 2 | . 1 1 . . . . . Heat Transferred 1802 | . 951 777 . . . 74 . Parts Sabotaged . | . . . . . . . . Parts Stolen . | . . . . . . . . Parts Stripped . | . . . . . . . . Power Chain Reactions 1 | . 1 . . . . . . Alert | -11 -10 -10 -9 -6 -6 -5 -4 ------- Run | Yrd Mat Sub Scr Fac DSF Fac Fac Maximum Alert Level . | . . . . . . . . Low Security (%) 100 | 100 100 . . 100 100 100 100 Level 1 . | . . . . . . . . Level 2 . | . . . . . . . . Level 3 . | . . . . . . . . Level 4 . | . . . . . . . . Level 5 . | . . . . . . . . High Security . | . . . . . . . . Max Security . | . . . . . . . . Peak Influence 100 | . 95 . . 5 30 100 89 Initial 49 | . . . . . . . 49 Average 25 | . 32 . . . 2 24 52 Influence Increases 931 | . 341 155 . 20 30 310 75 Destroy 0b10 Robot/C 200 | . 160 40 . . . . . Destroy 0b10 Robot/NC 20 | . 20 . . . . . . Destroy Leader 44 | . 34 10 . . . . . Successful Hack 103 | . 60 . . 5 . 38 . Disable Machine 45 | . 15 . . . 15 15 . Destroy Structure 39 | . 37 . . . . 2 . Partial Spotted 105 | . . . . 15 . 75 15 Lose Combat Pursuer 375 | . 15 105 . . 15 180 60 Influence Decreases 927 | . 341 108 47 20 30 210 171 Entered New Map 98 | . . . 47 . . . 51 Time Decay 679 | . 331 108 . 20 . 180 40 Lost Part 150 | . 10 . . . 30 30 80 Squads Dispatched 9 | . 2 . . . 2 5 . Investigation 2 | . . . . . . 2 . Extermination 1 | . . . . . . 1 . Reinforcement 6 | . 2 . . . 2 2 . Assault . | . . . . . . . . Garrison . | . . . . . . . . Intercept . | . . . . . . . . Searches Triggered . | . . . . . . . . Construction Impeded . | . . . . . . . . Haulers Reinforced . | . . . . . . . . Active Scanning Responses . | . . . . . . . . Cargo Convoy Interrupts 1 | . . . . . . 1 . Stealth | -11 -10 -10 -9 -6 -6 -5 -4 --------- Run | Yrd Mat Sub Scr Fac DSF Fac Fac Distress Signals 4 | . 2 . . . . 2 . Communications Jammed . | . . . . . . . . Distress Signals . | . . . . . . . . Times Spotted 91 | . 15 12 . . 12 34 18 Peak Tracking Total 19 | . 4 2 . . 8 19 14 Tactical Retreats 9 | . 1 3 . . 1 2 2 Traps | -11 -10 -10 -9 -6 -6 -5 -4 ------- Run | Yrd Mat Sub Scr Fac DSF Fac Fac Traps Triggered 8 | . 1 2 . . 3 2 . Indirectly . | . . . . . . . . Trap Hack Attempts . | . . . . . . . . Triggered . | . . . . . . . . Disarmed . | . . . . . . . . Reprogrammed . | . . . . . . . . Reused . | . . . . . . . . Traps Extracted . | . . . . . . . . Installed . | . . . . . . . . Triggered . | . . . . . . . . Machines | -11 -10 -10 -9 -6 -6 -5 -4 ---------- Run | Yrd Mat Sub Scr Fac DSF Fac Fac Machines Disabled 4 | . 1 1 . . 1 1 . Max in Single Turn 1 | . 1 1 . . 1 1 . Garrison Access 1 | . . . . . . 1 . Machines Repaired . | . . . . . . . . Machines Dismantled . | . . . . . . . . Machines Sabotaged . | . . . . . . . . Overloaded Fab Kills . | . . . . . . . . Hacking | -11 -10 -10 -9 -6 -6 -5 -4 --------- Run | Yrd Mat Sub Scr Fac DSF Fac Fac Machines Accessed 25 | . 8 3 3 2 . 8 1 Terminals 14 | . 6 . . 2 . 6 . Fabricators 1 | . . . . . . 1 . Repair Stations 1 | . 1 . . . . . . Recycling Units 2 | . 1 . . . . . 1 Scanalyzers . | . . . . . . . . Garrison Access 1 | . . . . . . 1 . Total Hacks 93 | . 28 12 27 5 . 18 3 Successful 69 | . 19 12 27 2 . 7 2 Failed 24 | . 9 . . 3 . 11 1 Catastrophic 4 | . 3 . . . . 1 . Database Lockouts . | . . . . . . . . Manual 2 | . 2 . . . . . . Terminals 39 | . 22 . . 5 . 12 . Fabricators 2 | . . . . . . 2 . Repair Stations 5 | . 5 . . . . . . Recycling Units 4 | . 1 . . . . . 3 Scanalyzers . | . . . . . . . . Garrison Access 4 | . . . . . . 4 . Terminal Hacks 62 | . 15 12 27 2 . 6 . Record 38 | . 2 9 27 . . . . Robot Analysis 1 | . 1 . . . . . . Prototype ID Bank 3 | . 3 . . . . . . Open Door 1 | . . 1 . . . . . Open DSF 1 | . . . . 1 . . . Level Access Points 1 | . 1 . . . . . . Branch Access Points 1 | . 1 . . . . . . Emergency Access Points 3 | . 2 . . . . 1 . Terminal Index 1 | . . . . . . 1 . Scanalyzer Index 1 | . 1 . . . . . . Locate Traps 5 | . 2 . . . . 3 . Security Status 1 | . 1 . . . . . . Hauler Manifests 2 | . 1 . . 1 . . . Zone Layout 1 | . . . . . . 1 . Proto ID Catalog 1 | . . 1 . . . . . Release Object 1 | . . 1 . . . . . Fabricator Hacks . | . . . . . . . . Repair Station Hacks 3 | . 3 . . . . . . Scan Component 2 | . 2 . . . . . . Repair 1 | . 1 . . . . . . Recycling Unit Hacks 3 | . 1 . . . . . 2 Process 1 | . . . . . . . 1 Report Inventory 1 | . 1 . . . . . . Retrieve Matter 1 | . . . . . . . 1 Scanalyzer . | . . . . . . . . Garrison Access Hacks 1 | . . . . . . 1 . Seal Access 1 | . . . . . . 1 . Unauthorized Hacks . | . . . . . . . . Terminals . | . . . . . . . . Fabricators . | . . . . . . . . Repair Stations . | . . . . . . . . Recycling Units . | . . . . . . . . Scanalyzers . | . . . . . . . . Garrison Access . | . . . . . . . . Data Cores Recovered 1 | . 1 . . . . . . Used . | . . . . . . . . Hacking Detections 15 | . 8 . . 1 . 5 1 Full Trace Events 2 | . . . . . . 2 . Feedback Events . | . . . . . . . . Feedback Blocked . | . . . . . . . . Robot Schematics Acquired . | . . . . . . . . Robots Built . | . . . . . . . . Authchips . | . . . . . . . . Time . | . . . . . . . . Total Robot Build Rating . | . . . . . . . . Part Schematics Acquired . | . . . . . . . . Parts Built . | . . . . . . . . Authchips . | . . . . . . . . Time . | . . . . . . . . Total Part Build Rating . | . . . . . . . . Parts Repaired 1 | . 1 . . . . . . Time 26 | . 26 . . . . . . Parts Recycled . | . . . . . . . . Recycled Matter 95 | . . . . . . . 95 Retrieved Matter 95 | . . . . . . . 95 Retrieved Components . | . . . . . . . . Parts Scanalyzed . | . . . . . . . . Part Schematics Acquired . | . . . . . . . . Parts Damaged . | . . . . . . . . Bothacking | -11 -10 -10 -9 -6 -6 -5 -4 ------------ Run | Yrd Mat Sub Scr Fac DSF Fac Fac Used RIF Installer . | . . . . . . . . Robots Hacked 1 | . 1 . . . . . . Non-combat 1 | . 1 . . . . . . Combat . | . . . . . . . . Robot Hacks Applied 3 | . 3 . . . . . . parse_system 1 | . 1 . . . . . . no_distress 1 | . 1 . . . . . . check_alert 1 | . 1 . . . . . . Relay Couplers Released . | . . . . . . . . Fabnet Peak Effective % . | . . . . . . . . Robots Rewired . | . . . . . . . . Allies Hacked . | . . . . . . . . Hacks Repelled . | . . . . . . . . Allies | -11 -10 -10 -9 -6 -6 -5 -4 -------- Run | Yrd Mat Sub Scr Fac DSF Fac Fac Total Allies . | . . . . . . . . Largest Group . | . . . . . . . . Highest-Rated Group . | . . . . . . . . Highest-Rated Ally . | . . . . . . . . Total Orders . | . . . . . . . . Ally Attacks . | . . . . . . . . Total Damage . | . . . . . . . . Kills . | . . . . . . . . Allies Corrupted . | . . . . . . . . Allies Melted . | . . . . . . . . Intel | -11 -10 -10 -9 -6 -6 -5 -4 ------- Run | Yrd Mat Sub Scr Fac DSF Fac Fac Active Infowar (turns) 7178 | . 1054 3508 2154 187 162 99 14 Sensors 6892 | . 782 3508 2154 187 162 99 . IFF 347 | . . . 8 187 152 . . Terrain 358 | . 358 . . . . . . ECM 23 | . . . . 9 . . 14 Robot Analysis Total 1 | . 1 . . . . . . Derelict Logs Recovered 5 | . . 3 2 . . . . Drone Launches . | . . . . . . . . Drone Recoveries . | . . . . . . . . Exploration | -11 -10 -10 -9 -6 -6 -5 -4 ------------- Run | Yrd Mat Sub Scr Fac DSF Fac Fac Turns Passed 7743 | 64 1088 3508 2154 187 167 495 80 Spaces Moved 5873 | 46 769 1873 1126 438 157 1346 118 Core 28 | 4 . . . . . . 24 Treads . | . . . . . . . . Legs 3807 | 42 769 1873 1123 . . . . Wheels . | . . . . . . . . Hover 35 | . . . . 35 . . . Flight 2003 | . . . 3 403 157 1346 94 Fastest Speed 30 | 50 120 120 34 34 30 33 37 Average Speed 122 | 113 121 178 189 36 33 33 61 Slowest Speed 250 | 120 190 190 190 114 37 40 250 Overloaded Moves . | . . . . . . . . Propulsion Burnouts . | . . . . . . . . Robots Hopped 6 | . . . . . . 5 1 Potential Cave-ins . | . . . . . . . . Cave-ins Triggered . | . . . . . . . . Exploration Rate (%) 46 | 3 98 79 61 10 87 30 4 Regions Visited 7 Branch Regions 2 Pre-discovered Areas 5 | . . 3 2 . . . . Known Exits Taken 5 | . 1 1 1 1 . 1 . Unknown Exits Taken 1 | 1 . . . . . . . Scrap Searched 8 | . . 5 3 . . . . Spaces Dug . | . . . . . . . . Terrain Destroyed 43 | . 40 2 . . . 1 . Melee . | . . . . . . . . Projectile 5 | . 2 2 . . . 1 . AOE 38 | . 38 . . . . . . Terrain Rammed . | . . . . . . . . Walls Destroyed . | . . . . . . . . Machines Disabled . | . . . . . . . . Actions | -11 -10 -10 -9 -6 -6 -5 -4 --------- Run | Yrd Mat Sub Scr Fac DSF Fac Fac Total 6273 | 57 866 1969 1151 462 268 1377 123 Wait 93 | . 10 14 . 5 63 1 . Move 5854 | 45 768 1872 1125 437 156 1335 116 Hop 6 | . . . . . . 5 1 Pick Up 54 | 7 18 13 7 1 1 7 . Fast Attach 31 | 1 2 3 . 12 3 9 1 Attach 28 | 4 7 6 4 . 2 . 5 Detach 6 | . . . 5 1 . . . Swap 20 | . 15 3 1 . . 1 . Drop 52 | . 12 12 9 6 4 9 . Fire 82 | . 29 45 . . 3 5 . Melee 5 | . 5 . . . . . . Ram . | . . . . . . . . Kick . | . . . . . . . . Crush . | . . . . . . . . Escape Stasis 41 | . . . . . 36 5 . Rewire . | . . . . . . . . Trap . | . . . . . . . . Miscellaneous 1 | . . 1 . . . . . Route ------- -11/Scrapyard -10/Materials (discovered 5 exits: *Mat x3 / *Min / *Sub) -10/Subcaves (discovered 3 exits: *Mat x2 / *Scr) -9/Scraptown -6/Factory -6/DSF -5/Factory (discovered 3 exits: *Fac x3) -4/Factory (discovered 1 exit: [*Upp]) History --------- Turn | Location | Event 5 | -11/Scrapyard | Discovered new exit (range 16) 65 | -11/Scrapyard | Entered Materials 170 | -10/Materials | Identified exit to Mines 240 | -10/Materials | Discovered new exit (range 11) 347 | -10/Materials | Build established: Mutant 631 | -10/Materials | Repaired Aluminum Leg 734 | -10/Materials | Discovered new exit (range 10) 743 | -10/Materials | Identified exit to Materials 860 | -10/Materials | Discovered exit to Materials (range 16) 1144 | -10/Materials | Discovered new exit (range 9) 1152 | -10/Materials | Identified exit to Subcaves 1153 | -10/Materials | Entered Subcaves 1154 | -10/Subcaves | Approached by a straggling Scientist 1371 | -10/Subcaves | Scientist uncovered a shortcut to Scraptown 1374 | -10/Subcaves | Identified exit to Scraptown 1381 | -10/Subcaves | Shifting Twisted Machinery released Shrapnel Trap 1387 | -10/Subcaves | Shifting Twisted Machinery released Mak. Hammer 1389 | -10/Subcaves | Identified exit to Materials 1402 | -10/Subcaves | Shifting Twisted Machinery released Sub. Machine Gun 1406 | -10/Subcaves | Ambushed by Subdwellers from Twisted Machinery 1413 | -10/Subcaves | Shifting Twisted Machinery released Spk. Treads 1551 | -10/Subcaves | Visited 4L-MR0's lab 1574 | -10/Subcaves | Found Meta Core 1576 | -10/Subcaves | Attached Meta Core, gained temporary slots: Propulsion, Utility, Weapon 1860 | -10/Subcaves | Build established: Skirmisher 2291 | -10/Subcaves | Learned location of Zion (-7) 2291 | -10/Subcaves | Met a Zionite searching for "candidates" 2960 | -10/Subcaves | Core integrity fell below 50% 3058 | -10/Subcaves | Released subatomizers from SUBCON Basin 3126 | -10/Subcaves | Shifting Twisted Machinery released Sub. Shrapnel Launcher 3160 | -10/Subcaves | Shifting Twisted Machinery released Sub. Laser 3205 | -10/Subcaves | Learned location of Mines (-9) 3442 | -10/Subcaves | A swath of the cavern ceiling suddenly collapsed 3934 | -10/Subcaves | Discovered exit to Materials (range 14) 4661 | -10/Subcaves | Entered Scraptown 5257 | -9/Scraptown | Scanned Subdweller tech in exchange for log data 5263 | -9/Scraptown | Learned Factory interactive machine intel 5265 | -9/Scraptown | Learned location of Warlord (-5) 5292 | -9/Scraptown | Discovered new exit (range 5) 5303 | -9/Scraptown | Identified exit to Factory 5423 | -9/Scraptown | Visited Spacefarers 5499 | -9/Scraptown | Visited SPCMW 5561 | -9/Scraptown | Visited Fellowship of the Rings 5864 | -9/Scraptown | Visited Awakened 5958 | -9/Scraptown | Visited Artisan Demo Area 6089 | -9/Scraptown | Visited Cyclists 6165 | -9/Scraptown | Visited Cave Peace 6815 | -9/Scraptown | Entered Factory 6815 | -6/Factory | Evolved 8 slots: Propulsion x4, Utility x3, Weapon x1 6816 | -6/Factory | Loaded intel: 51 interactive machine locations 6841 | -6/Factory | Identified exit to DSF 7002 | -6/Factory | Entered DSF 7055 | -6/DSF | Additional patrols routed to DSF 7100 | -6/DSF | Build established: Scout 7164 | -6/DSF | Discovered new exit (range 15) 7168 | -6/DSF | Identified exit to Factory 7169 | -6/DSF | Entered Factory 7169 | -5/Factory | Evolved 2 slots: Propulsion x1, Utility x1 7195 | -5/Factory | Lost 3 parts (1n2u) 7267 | -5/Factory | Discovered new exit (range 16) 7272 | -5/Factory | Identified exit to Factory 7651 | -5/Factory | Discovered exit to Factory (range 15) 7662 | -5/Factory | Discovered exit to Factory (range 5) 7664 | -5/Factory | Cargo convoy interrupted 7664 | -5/Factory | Entered another Factory area 7664 | -4/Factory | Evolved 2 slots: Power x1, Weapon x1 7684 | -4/Factory | Discovered new exit (range 7) 7719 | -4/Factory | Core integrity fell below 50% 7739 | -4/Factory | Core integrity fell below 20% 7744 | -4/Factory | Destroyed by S-27 Virus with Autogun Last Messages --------------- Remote Datajacks cannot fire with other weapons in the same volley. 07706_ K-01 Serf collects debris. 07711_ Impulse Thruster destroyed. 07712_ Adv. EM Disruption Field destroyed. 07712_ K-01 Serf collects debris. 07719_ Imp. Remote Datajack destroyed. 07721_ K-01 Serf collects debris. 07730_ Adv. ECM Suite destroyed. 07731_ K-01 Serf collects debris. 07732_ Adv. Hacking Suite destroyed. 07732_ Meta Core destroyed. 07734_ K-01 Serf collects debris. 07736_ Slug penetrates S-27 Virus. 07736_ S-27 Virus destroyed. 07737_ K-01 Serf collects debris. 07742_ Slug penetrates Wall. 07743_ K-01 Serf collects debris. 07744_ Mic. Fission Core destroyed. [Achievement: 5k Club] Map ----- +----------------------------------------------------+ | ????????? ??### ###????????????????????????????? | | ????????# ??# #????????????????????????????? | | ????????# #?? ?????????????????????????????? | | ######### ?? +????????????????????????????? | | #??? ?????????????????????????????? | | #??? ??????????????????????????????? | | """" #???# #??????????????????????????????? | | """ "F " #??##/########???????????????????????? | | """ #### #???????????????????????? | | """ + "" #???????????????????????? | | "" # """ #???????????????????????? | | "" # """ T" #???????????????????????? | | # """ """ #???????????????????????? | | # """ "" #?????##########????????? | | # ####### #????????? | | # # # #????????? | | #######+### # #????????? | | #??# # #????????? | | ###### #??# + #????????? | | # #??# # #????????? | | """ # #??# # #????????? | | "Y" + #??# # #????????? | | " " ##### #??# ######## #????????? | | #???# #### ###################??????? | | #???# g#g #??????? | | #+######## gY @ #??????? | | b#g [ #??????? | | ########## # % #??????? | | ?? / # sss #??????? | | # # k #??????? | | # # #??????? | | ?# ###################??????? | | ??# #????????????????????????? | | ???# #????????????????????????? | | ???# #????????????????????????? | | ????# #????????????????????????? | | ?????######## #????????????????????????? | | ????????????? #????????????????????????? | | ?????????????? #????????????????????????? | | ? ??????????????? +????????????????????????? | | ????????????????? #????????????????????????? | | ????????????????? ???????????????????????????? | | ???????????????????????????????????????????????? | | ???????????????????????????????????????????????? | | ???????????????????????????????????????????????? | | ???????????????????????????????????????????????? | | ???????????????????????????????????????????????? | | ???????????????????????????????????????????????? | | ???????????????????????????????????????????????? | | ???????????????????????????????????????????????? | +----------------------------------------------------+ Best States ------------- Heat Dissipation 43 Energy Generation 17 Energy Capacity 200 Matter Stores 300 Matter Capacity 300 Sight Range 16 Robot Scan Range 16 Terrain Scan Range 14 Terrain Scan Density 210 ECM Strength 2 Armor Coverage 100 Evasion (%) 71 Offensive Hacking 24 Item Schematics ----------------- None Robot Schematics ------------------ None Fabricated ------------ Nothing Repaired ---------- Aluminum Leg | 64% | -10/Materials Alien Tech Used ----------------- None Achievements -------------- 5k Club I Spy Let's See Who's Tougher Made in Tau Ceti IV Novice Programmer Part-time Mechanic Serviceable Loadout Challenges ------------ None Game ------ Seed OmegaMiningThermoblaster Manual? 0 Play Time 01:48:09 Cumulative 4.3 hours Start 2025.07.26 @ 23:04:17 End 2025.07.27 @ 01:28:58 Sessions 1 Manual Loads 0 Difficulty Rogue Special Mode None Game No. 5 Rogue 5 Adventurer 0 Explorer 0 Win Type - Total 0 Types 0/0/0/0/0/0/0/0/0/0 Lore% 11 Gallery% 6 Achievement% 7 Wizard Run 0 Options --------- Layout 1 ASCII 0 Keyboard 0 Movement Mouse Keybinds 0 Fullscreen 2 Font 48/Smallcaps Map View 50x35 Zoom Use 0% Tactical HUD 1 Map Filters NONE Filters NONE Steam 1 RUN: f7ba02ea-1cb1-4388-b42f-acc319be07a1